bitfinex/quotes_ETHUSD_20260119
["timestamp","ask_amount","ask_price","bid_price","bid_amount"]
[1768856643935,0.001,3217.0,3216.9,0.002]
[1768856644431,2.79309472,3217.0,3216.9,0.002]
[1768856645198,2.79309472,3217.0,3216.6,0.000802]
[1768856645199,3.07240419,3217.0,3216.6,0.000802]
[1768856645425,2.79309472,3217.0,3216.6,0.000802]
[1768856645626,0.00080544,3217.3,3216.7,1.21063745]
[1768856645627,2.79209472,3217.2,3216.7,1.21063745]
[1768856645811,0.00080544,3217.3,3216.7,1.21063745]
[1768856647916,0.00080544,3217.3,3216.9,1.20419809]
[1768856651131,0.00080544,3217.3,3216.9,4.31274649]
[1768856651631,3.10443866,3217.9,3217.0,2.82924413]
[1768856651837,0.513,3217.7,3217.5,0.00080456]
[1768856652005,3.30509472,3217.7,3217.5,0.00080456]
[1768856654632,2.79409472,3218.0,3217.5,0.00080456]
[1768856654839,0.002,3218.0,3217.6,6.08281667]
[1768856655001,0.00280416,3218.3,3217.7,2.82924413]
[1768856655334,0.00280416,3218.3,3217.9,2.82924413]
[1768856658028,0.00280416,3218.3,3217.8,3.10771334]
[1768856658029,2.79489888,3218.3,3217.5,0.00080456]
[1768856658532,2.79489888,3218.3,3217.5,3.10880277]
[1768856658736,2.79489888,3218.3,3217.5,4.00585349]
[1768856659032,0.513,3218.2,3217.5,0.00080456]
[1768856659228,2.79209472,3218.1,3217.5,0.00080456]
[1768856659937,2.79209472,3218.1,3217.5,3.10876016]
[1768856660137,0.513,3218.2,3217.6,2.82924413]
[1768856660616,3.30509472,3218.2,3217.6,2.82924413]
[1768856662103,2.79209472,3218.1,3217.5,0.00080456]
[1768856664430,2.63260579,3218.0,3217.5,0.00080456]
[1768856666542,2.63260579,3217.9,3217.5,0.00080456]
[1768856667637,2.63260579,3217.9,3217.8,0.001]
[1768856673578,3.62035179,3218.2,3217.8,0.001]
[1768856673579,2.63260579,3218.1,3217.8,0.001]
[1768856675038,2.63260579,3218.2,3217.8,0.001]
[1768856677060,3.10734717,3218.2,3217.8,0.001]
[1768856677279,2.63260579,3218.1,3217.8,0.001]
[1768856679977,0.51580416,3218.3,3217.8,2.5016665]
[1768856679978,0.00280416,3218.3,3217.8,2.5016665]
[1768856680264,6.25317492,3218.8,3218.0,2.25512622]
[1768856680570,2.63260579,3218.7,3218.0,2.25512622]
[1768856682248,2.03096397,3218.6,3218.0,2.25512622]
[1768856682567,2.03096397,3218.6,3218.0,2.81585161]
[1768856684865,5.13790803,3218.6,3218.0,2.81585161]
[1768856685270,2.03096397,3218.6,3218.0,2.81585161]
[1768856685760,5.13791141,3218.6,3218.0,2.81585161]
[1768856686179,2.03096397,3218.6,3218.0,2.81585161]
[1768856686877,5.13791303,3218.6,3218.0,2.81585161]
[1768856687076,2.03096397,3218.5,3218.0,2.81585161]
[1768856687382,2.03096397,3218.5,3218.0,2.25512622]
[1768856688151,2.03096397,3218.2,3217.8,0.001]
[1768856693890,5.80042014,3218.3,3217.8,0.001]
[1768856693891,0.00280424,3218.3,3217.8,1.49630334]
[1768856694183,0.00280424,3218.3,3218.2,0.02591005]
[1768856695294,1.57172564,3218.3,3217.8,0.001]
[1768856695503,1.57172564,3218.3,3217.8,0.50354946]
[1768856698076,1.5689214,3218.2,3217.8,0.001]
[1768856700784,1.5689214,3217.9,3217.5,0.00080456]
[1768856702512,1.5689214,3217.9,3217.8,0.001]
[1768856702718,1.5709214,3217.9,3217.8,0.001]
[1768856703601,0.00200002,3218.1,3217.8,1.05820554]
[1768856703982,0.00200002,3218.1,3217.8,0.001]
[1768856704409,1.57092142,3218.1,3217.8,0.001]
[1768856706601,0.00200002,3218.1,3217.8,0.001]
[1768856706798,0.00200002,3218.1,3217.8,0.93634558]
[1768856707209,0.00200002,3218.1,3217.8,0.001]
[1768856707782,0.00200002,3218.1,3217.8,0.89665513]
[1768856709680,1.57092142,3218.1,3217.8,0.001]
[1768856709875,1.5689214,3217.9,3217.8,0.001]
[1768856713118,0.00100002,3217.8,3217.5,0.74220463]
[1768856714009,0.00100002,3217.8,3217.6,0.66690477]
[1768856715283,0.002,3218.2,3217.6,0.59411093]
[1768856715489,0.002,3218.2,3217.7,0.59411093]
[1768856716014,0.002,3218.2,3217.8,3.66605323]
[1768856716215,0.002,3218.2,3217.8,4.39473736]
[1768856717705,0.002,3218.2,3217.9,0.52297971]
[1768856717915,0.00280424,3218.3,3217.9,0.52097971]
[1768856718419,0.00280424,3218.3,3218.0,3.59354587]
[1768856718922,0.00280424,3218.3,3218.0,0.48602568]
[1768856719141,1.57172564,3218.3,3217.6,0.45147313]
[1768856719284,0.00280424,3218.3,3217.8,0.45147313]
[1768856719487,0.00280424,3218.3,3217.9,3.55908158]
[1768856721793,0.00280424,3218.3,3217.9,0.45147313]
[1768856721996,1.57172564,3218.3,3217.7,4.00429553]
[1768856722288,1.57172564,3218.3,3217.6,0.35017852]
[1768856722489,1.7288982,3218.3,3217.7,3.10780478]
[1768856722890,1.7288982,3218.3,3217.6,3.10790651]
[1768856723090,1.57172564,3218.3,3217.6,3.10790651]
[1768856724821,1.57172564,3218.3,3217.6,6.46811631]
[1768856725620,1.57172564,3218.3,3217.7,0.22041964]
[1768856726097,1.57172564,3218.3,3217.9,0.001]
[1768856727226,1.57172564,3218.3,3217.9,3.10861676]
[1768856727423,1.57172564,3218.3,3217.9,3.74914868]
[1768856728094,1.57172564,3218.3,3217.9,0.64153192]
[1768856729930,1.57172564,3218.3,3217.9,3.74914199]
[1768856732627,1.57172564,3218.3,3217.9,0.001]
[1768856733413,1.57172564,3218.3,3217.9,3.10857662]
[1768856733732,1.57172564,3218.3,3217.9,0.001]
[1768856733900,0.00280424,3218.3,3217.9,0.10218604]
[1768856734497,0.002,3218.6,3217.9,0.001]
[1768856734703,0.0008036,3218.8,3218.4,0.10118604]
[1768856735823,0.0008036,3218.8,3218.4,3.20825525]
[1768856738034,0.002,3218.5,3218.4,3.20825525]
[1768856742634,0.002,3218.5,3218.4,3.72125525]
[1768856742834,0.002,3218.5,3218.4,4.35916612]
[1768856744914,1e-08,3218.8,3218.5,0.10118604]
[1768856745624,0.002,3219.4,3218.4,7.36591773]
[1768856745625,0.99667148,3219.3,3218.7,0.0008028]
[1768856747717,0.99667148,3219.2,3218.7,0.0008028]
[1768856747925,0.99667148,3219.1,3218.7,0.0008028]
[1768856749232,3.10819134,3219.4,3218.7,0.98387134]
[1768856749233,0.002,3219.4,3218.7,0.98387134]
[1768856749552,0.99667148,3219.3,3218.7,0.98387134]
[1768856750124,0.002,3219.0,3218.7,0.98387134]
[1768856750336,0.002,3219.0,3218.7,4.49978523]
[1768856750538,0.002,3219.0,3218.8,0.98306854]
[1768856751818,0.002,3219.0,3218.9,0.98306854]
[1768856753822,0.002,3219.0,3218.9,4.08971988]
[1768856754144,0.002,3219.3,3218.9,4.08971988]
[1768856755449,0.002,3219.3,3218.9,4.85034797]
[1768856756357,0.002,3219.3,3219.0,0.91238963]
[1768856756778,0.002,3219.3,3218.9,3.86727943]
[1768856756977,0.98842338,3219.3,3218.8,4.01905449]
[1768856762257,0.98842338,3219.3,3218.8,0.91238963]
[1768856762627,0.98842338,3219.3,3218.8,4.01912358]
[1768856763159,0.98842338,3219.3,3218.8,0.91238963]
[1768856763360,0.98842338,3219.3,3218.7,0.0008028]
[1768856763661,0.40966491,3219.2,3218.7,3.10762534]
[1768856763850,0.98642338,3219.1,3218.7,3.10762534]
[1768856764050,0.98642338,3219.1,3218.7,0.0008028]
[1768856765865,0.98642338,3218.9,3218.7,0.0008028]
[1768856766066,0.98642338,3218.9,3218.4,0.00080368]
[1768856767081,0.98642338,3218.7,3218.4,0.00080368]
[1768856767247,0.98642338,3218.7,3218.2,0.001]
[1768856768681,0.98642338,3218.6,3218.2,0.001]
[1768856769883,0.98642338,3218.6,3217.9,0.91419395]
[1768856769884,0.98642338,3218.6,3217.9,0.00180432]
[1768856770082,0.98642338,3218.2,3217.9,0.00180432]
[1768856772484,0.98642338,3218.1,3217.5,0.00080456]
[1768856775054,0.98642338,3218.0,3217.8,0.001]
[1768856779488,0.98642338,3217.9,3217.8,0.001]
[1768856787002,4.06545828,3218.1,3217.8,0.001]
[1768856787300,0.95798999,3218.0,3217.8,0.001]
[1768856790195,4.06553772,3218.0,3217.8,0.001]
[1768856790401,0.95798999,3217.9,3217.8,0.001]
[1768856792402,4.06560675,3217.9,3217.8,0.001]
[1768856792699,0.95798999,3217.9,3217.8,0.001]
[1768856792897,0.71728677,3218.0,3217.8,0.001]
[1768856793104,4.06542869,3218.1,3217.8,0.001]
[1768856793804,0.95798999,3218.1,3217.8,0.001]
[1768856794305,4.06543196,3218.1,3217.8,0.001]
[1768856795722,0.00280368,3218.8,3218.1,0.93353833]
[1768856795875,0.002,3219.4,3218.7,5.79281663]
[1768856796079,0.002,3219.7,3218.8,0.93353833]
[1768856797016,0.95998999,3219.7,3218.8,0.93353833]
[1768856797509,0.95998999,3219.7,3218.9,0.93353833]
[1768856799176,0.95998999,3219.6,3218.9,0.93353833]
[1768856800379,0.95998999,3219.6,3219.0,0.93353833]
[1768856803016,0.95599819,3219.5,3219.0,0.40402183]
[1768856803235,0.95599819,3219.5,3218.8,1.44272623]
[1768856804290,0.95599819,3219.5,3218.8,0.92972623]
[1768856804291,0.95399819,3219.4,3218.8,0.92972623]
[1768856804488,6.74601194,3219.4,3218.7,0.00080288]
[1768856804794,0.95399819,3219.3,3218.7,0.00080288]
[1768856805195,0.95399819,3219.0,3218.4,0.00080376]
[1768856805423,0.51380288,3219.1,3218.4,0.93052999]
[1768856805729,0.51380288,3219.1,3218.8,0.92972623]
[1768856805730,0.00080288,3219.1,3218.8,0.92972623]
[1768856805915,0.00080288,3219.1,3219.0,0.92972623]
[1768856806234,0.95599819,3219.5,3219.0,0.92972623]
[1768856806434,0.95599819,3219.5,3218.7,0.93052919]
[1768856808031,0.95399819,3219.4,3218.7,0.93052919]
[1768856808219,0.95399819,3219.4,3218.8,0.45504546]
[1768856808420,0.95399819,3219.4,3218.7,0.93052919]
[1768856811567,0.95399819,3219.3,3218.7,0.93052919]
[1768856813851,0.95399819,3219.3,3218.7,0.00080296]
[1768856814418,0.95399819,3219.3,3218.7,0.96291226]
[1768856815753,4.06027645,3219.3,3218.7,0.96291226]
[1768856816049,0.97604323,3219.2,3218.7,0.00080296]
[1768856817851,0.97604323,3219.1,3218.7,0.00080296]
[1768856818049,0.97604323,3219.1,3218.4,0.00080376]
[1768856818050,0.97684619,3219.1,3218.4,0.00080376]
[1768856818254,0.97684619,3219.1,3218.4,0.96291306]
[1768856818560,0.97684619,3219.1,3218.4,0.00080376]
[1768856818718,0.513,3219.0,3218.6,0.9621093]
[1768856818915,0.002,3219.5,3219.0,0.9621093]
[1768856819649,0.97804323,3219.8,3219.0,0.9621093]
[1768856819969,0.97804323,3219.8,3219.2,0.9621093]
[1768856822842,0.97804323,3219.8,3219.3,0.9621093]
[1768856823442,0.002,3219.4,3219.3,0.9621093]
[1768856823838,0.97804323,3219.8,3219.3,0.9621093]
[1768856826340,4.08383987,3219.8,3219.3,0.9621093]
[1768856826746,0.97804323,3219.8,3219.3,0.9621093]
[1768856827870,0.97804323,3219.7,3219.1,0.9621093]
[1768856828078,0.97804323,3219.7,3219.0,0.9631093]
[1768856828381,0.97804323,3219.7,3219.1,0.9621093]
[1768856829979,0.002,3219.7,3219.2,0.9621093]
[1768856830140,0.002,3220.1,3219.7,0.9621093]
[1768856830339,3.10409209,3221.6,3219.7,0.9621093]
[1768856830340,1.48904323,3220.3,3219.7,0.9621093]
[1768856831142,0.97604323,3220.2,3219.7,0.9621093]
[1768856831348,0.97604323,3220.2,3219.4,0.9621093]
[1768856831566,0.97604323,3220.2,3219.5,0.9621093]
[1768856831774,0.97604323,3220.2,3219.0,3.56578823]
[1768856832074,0.97604323,3220.0,3219.0,4.52789753]
[1768856832278,0.97604323,3220.0,3219.1,0.9621093]
[1768856833747,0.97604323,3219.8,3219.1,0.9621093]
[1768856834052,0.97604323,3219.7,3219.1,0.9621093]
[1768856834678,0.97604323,3219.7,3219.1,4.06856148]
[1768856835080,0.97604323,3219.7,3219.4,0.001]
[1768856835386,0.97804323,3219.7,3219.4,0.001]
[1768856837050,0.97604323,3219.6,3219.4,0.001]
[1768856839590,0.002,3220.0,3219.6,0.9621093]
[1768856840376,1.49104323,3220.4,3219.5,0.9621093]
[1768856840792,4.59629684,3220.4,3219.5,0.9621093]
[1768856841476,4.59629684,3220.4,3219.6,3.10597589]
[1768856841684,4.59629684,3220.4,3219.7,0.9621093]
[1768856842783,0.97604323,3220.3,3219.7,0.9621093]
[1768856843991,0.96936529,3220.3,3219.5,0.96519462]
[1768856844197,0.96936529,3220.2,3219.5,0.96519462]
[1768856845993,0.96936529,3220.1,3219.5,0.96519462]
[1768856846761,1.48136529,3220.3,3219.6,0.96519462]
[1768856846963,0.96936529,3220.2,3219.6,0.96519462]
[1768856847393,0.96936529,3220.2,3219.9,0.001]
[1768856847765,0.002,3220.0,3219.9,0.001]
[1768856847960,0.97136529,3220.0,3219.9,0.001]
[1768856848584,0.002,3220.0,3219.9,0.001]
[1768856849265,0.97136529,3220.3,3219.9,0.001]
[1768856849684,0.002,3220.3,3219.9,0.96619462]
[1768856854690,4.07672004,3220.3,3219.9,0.001]
[1768856855809,0.96936529,3220.2,3219.4,3.801]
[1768856856109,0.96936529,3220.0,3219.4,0.001]
[1768856856908,0.96936529,3219.8,3219.4,0.001]
[1768856857078,0.96936529,3219.7,3219.4,0.001]
[1768856857280,0.96936529,3219.6,3219.4,0.001]
[1768856859480,3.10607237,3219.5,3219.4,0.001]
[1768856859800,4.07543766,3219.5,3219.4,0.001]
[1768856860603,0.96936529,3219.5,3219.4,0.001]
[1768856863798,4.07543766,3219.5,3219.4,0.001]
[1768856865422,4.84477735,3219.5,3219.4,0.001]
[1768856868021,4.84477735,3219.5,3219.0,0.99551814]
[1768856868690,4.85772325,3219.5,3219.0,0.99551814]
[1768856868936,3.87541206,3219.5,3219.0,0.99551814]
[1768856869094,0.98231119,3219.4,3219.0,0.001]
[1768856870526,4.08849231,3219.4,3219.0,0.001]
[1768856871133,4.08849231,3219.4,3219.3,0.001]
[1768856871426,4.88487645,3219.4,3219.3,0.001]
[1768856876434,4.88487645,3219.4,3218.7,0.00080304]
[1768856876609,0.0008044,3218.3,3217.8,0.0008044]
[1768856876812,0.99255127,3218.2,3217.8,0.0008044]
[1768856877131,0.99255127,3218.2,3217.5,0.90248262]
[1768856877735,0.513,3218.1,3217.5,0.90248262]
[1768856878042,0.513,3218.2,3217.6,0.90167806]
[1768856879135,3.62033541,3218.2,3217.6,0.90167806]
[1768856879636,0.513,3218.2,3217.6,0.90167806]
[1768856879994,3.62033274,3218.2,3217.6,0.90167806]
[1768856881528,0.513,3218.2,3217.6,0.90167806]
[1768856881834,3.62034829,3218.2,3217.6,0.90167806]
[1768856882232,3.10734829,3218.2,3217.6,0.90167806]
[1768856882438,0.513,3218.2,3217.6,0.90167806]
[1768856882835,0.513,3218.2,3217.9,0.001]
[1768856883043,0.97436671,3218.2,3217.9,0.001]
[1768856883916,4.08173148,3218.2,3217.9,0.001]
[1768856885010,0.97436671,3218.2,3217.9,0.001]
[1768856885219,0.513,3218.2,3217.9,0.001]
[1768856886157,1.50635567,3218.3,3217.9,0.90267806]
[1768856886369,0.00080376,3218.8,3218.2,0.90167806]
[1768856886568,0.513,3218.8,3218.4,0.9024819]
[1768856887659,0.99255127,3218.7,3217.9,0.00180448]
[1768856887955,0.99255127,3218.4,3217.9,0.00180448]
[1768856888157,0.99255127,3218.2,3217.9,0.00180448]
[1768856890043,0.99255127,3218.0,3217.9,0.00180448]
[1768856893846,4.10007146,3218.0,3217.9,0.00180448]
[1768856894052,4.82081223,3218.0,3217.9,0.00180448]
[1768856894247,0.99255127,3217.9,3217.5,0.00080456]
[1768856895442,0.99255127,3217.9,3217.5,0.90248262]
[1768856895640,3.10735213,3218.2,3217.5,0.00080456]
[1768856895641,0.99255127,3218.1,3217.5,0.00080456]
[1768856895834,0.99255127,3217.9,3217.5,0.00080456]
[1768856896231,0.99255127,3217.9,3217.5,0.90248262]
[1768856896958,4.10006365,3218.1,3217.5,0.90248262]
[1768856897159,0.99255127,3218.1,3217.5,0.90248262]
[1768856897359,3.10759925,3218.8,3218.0,0.90167806]
[1768856897526,0.513,3218.5,3218.0,0.90167806]
[1768856903760,4.58325741,3218.5,3218.0,0.90167806]
[1768856904159,0.96321898,3218.4,3217.9,0.00080456]
[1768856905652,3.10722143,3218.4,3217.9,0.00080456]
[1768856905851,0.96321898,3218.3,3217.9,0.00080456]
[1768856906254,0.96321898,3218.2,3217.9,0.00080456]
[1768856906464,1.47621898,3218.1,3217.9,0.00080456]
[1768856906669,0.96321898,3218.0,3217.9,0.00080456]
[1768856907337,0.96321898,3218.0,3217.5,0.00080456]
[1768856907756,0.96321898,3217.8,3217.5,0.00080456]
[1768856912639,4.07077944,3218.0,3217.5,0.00080456]
[1768856913265,4.07077944,3218.0,3217.5,0.94936277]
[1768856915353,4.83989285,3218.0,3217.5,0.94936277]
[1768856917296,4.38967387,3218.0,3217.8,0.001]
[1768856922300,0.96814164,3217.9,3217.8,0.001]
[1768856922592,0.96814164,3217.9,3217.5,0.00080456]
[1768856922799,0.96814164,3217.9,3217.5,0.93927545]
[1768856923108,0.513,3218.1,3217.6,0.93847089]
[1768856923318,0.513,3218.1,3217.7,0.93847089]
[1768856923468,0.00080456,3218.3,3217.9,0.93847089]
[1768856927394,0.00080456,3218.3,3218.0,0.93847089]
[1768856927782,0.9689462,3218.3,3217.8,1.92230561]
[1768856928107,0.9689462,3218.3,3217.8,0.93847089]
[1768856928988,0.9689462,3218.3,3217.8,0.94047089]
[1768856929504,0.001,3218.0,3217.8,0.94047089]
[1768856935609,0.001,3218.0,3217.9,0.99648449]
[1768856935792,0.00080456,3218.3,3217.9,0.99648449]
[1768856939583,0.963138,3218.3,3217.9,0.99648449]
[1768856941732,0.002,3218.0,3217.9,0.99648449]
[1768856945019,0.96433344,3218.0,3217.8,0.002]
[1768856945189,0.002,3218.0,3217.8,0.002]
[1768856945617,0.002,3218.0,3217.8,0.99848449]
[1768856971970,0.002,3218.0,3217.8,0.002]
[1768856983308,0.98888039,3218.0,3217.8,0.002]
[1768856983662,0.98688039,3217.9,3217.5,0.00280456]
[1768856983873,0.41163082,3218.0,3217.6,0.94921025]
[1768856984095,0.002,3218.0,3217.6,0.94921025]
[1768856987794,0.98888039,3218.0,3217.9,0.001]
[1768856991079,4.09640058,3218.0,3217.9,0.001]
[1768856991682,0.98888039,3218.0,3217.9,0.001]
[1768856992002,4.09640058,3218.0,3217.9,0.001]
[1768856992207,0.98688039,3217.9,3217.5,0.00280456]
[1768856996103,0.95125161,3217.8,3217.5,0.00280456]
[1768856997474,1.67362783,3218.0,3217.5,0.96224693]
[1768856997674,0.95125161,3217.9,3217.5,0.96224693]
[1768856999988,0.95125161,3217.9,3217.8,0.001]
[1768857001543,0.002,3218.0,3217.8,0.001]
[1768857003888,0.002,3218.0,3217.8,0.96044237]
[1768857010417,1.46705617,3218.3,3217.8,0.96044237]
[1768857011213,0.51580456,3218.3,3217.9,0.95944237]
[1768857012111,0.00280456,3218.3,3217.9,0.95944237]
[1768857019623,0.00280456,3218.3,3218.0,0.95944237]
[1768857020543,1.46425161,3218.6,3218.0,0.95944237]
[1768857020544,0.95125161,3218.7,3218.0,0.95944237]
[1768857021226,0.95125161,3218.7,3218.2,0.95944237]
[1768857021426,0.95205545,3218.8,3218.2,0.95944237]
[1768857022160,4.0588197,3218.8,3218.2,0.95944237]
[1768857022324,0.95125161,3218.7,3218.2,0.95944237]
[1768857026128,4.05810385,3218.7,3218.2,1.36613349]
[1768857026359,4.05810385,3218.7,3218.2,0.95944237]
[1768857028069,0.93241754,3218.6,3217.9,1.49438903]
[1768857028956,0.93241754,3218.6,3218.0,0.98058439]
[1768857030740,3.10698179,3218.6,3218.0,0.98058439]
[1768857030960,0.93241754,3218.5,3218.0,0.98058439]
[1768857032868,0.93241754,3218.5,3217.9,0.51380464]
[1768857032869,0.93241754,3218.4,3217.9,0.51380464]
[1768857033959,0.93241754,3218.4,3217.9,0.00080464]
[1768857034153,0.93241754,3218.3,3217.9,0.00080464]
[1768857036600,0.93241754,3218.1,3217.9,0.00080464]
[1768857040513,4.03984169,3218.1,3217.9,0.00080464]
[1768857041412,0.93241754,3218.1,3217.9,0.00080464]
[1768857042406,0.71464995,3218.4,3217.9,0.99828412]
[1768857042709,0.513,3218.3,3217.9,0.99828412]
[1768857046700,0.513,3218.3,3218.2,0.001]
[1768857050329,3.62023052,3218.3,3218.2,0.001]
[1768857053338,0.513,3218.3,3218.2,0.001]
[1768857056044,0.513,3218.3,3218.2,0.001]
[1768857060668,3.62023052,3218.3,3218.2,0.001]
[1768857061763,4.54158117,3218.3,3218.2,0.001]
[1768857062060,5.30645308,3218.3,3217.9,0.99828412]
[1768857062265,5.30645308,3218.3,3217.9,0.00080464]
[1768857062777,0.92135065,3218.2,3217.9,0.00080464]
[1768857063668,0.92135065,3218.2,3217.8,0.001]
[1768857064230,0.92135065,3218.2,3217.5,0.00280456]
[1768857064432,0.92135065,3218.0,3217.5,0.00280456]
[1768857064635,7.13658417,3217.9,3217.5,0.00280456]
[1768857064852,0.92135065,3217.8,3217.5,0.00280456]
[1768857067267,3.10780992,3217.7,3217.5,0.00280456]
[1768857067578,3.10780992,3217.7,3217.2,0.00080528]
[1768857067579,0.92135065,3217.6,3217.2,0.00080528]
[1768857067775,1.6350477,3217.5,3217.2,0.00080528]
[1768857067997,0.92135065,3217.4,3217.2,0.00080528]
[1768857068272,0.92135065,3217.4,3216.9,0.00080552]
[1768857068589,0.92135065,3217.2,3216.6,0.000802]
[1768857068743,0.92135065,3217.0,3216.6,0.000802]
[1768857069441,4.02993344,3216.9,3216.6,0.000802]
[1768857069668,0.92135065,3216.8,3216.6,0.000802]
[1768857071244,0.92135065,3216.8,3216.4,0.0008016]
[1768857071555,3.10877607,3216.7,3216.4,0.0008016]
[1768857071758,4.03006223,3216.8,3216.4,0.0008016]
[1768857072482,7.13877381,3216.8,3216.4,0.0008016]
[1768857072641,1.71174187,3216.7,3216.4,0.0008016]
[1768857073590,3.10887272,3216.6,3216.4,0.0008016]
[1768857073953,4.03022337,3216.6,3216.4,0.0008016]
[1768857075363,3.89920413,3216.7,3216.4,0.0008016]
[1768857075691,4.82055478,3216.7,3216.4,0.0008016]
[1768857075989,0.79292664,3216.6,3216.4,0.0008016]
[1768857076766,0.513,3216.8,3216.4,0.92265782]
[1768857077897,3.62168748,3216.8,3216.4,0.92265782]
[1768857080593,4.54303813,3216.8,3216.4,0.0008016]
[1768857081091,4.54303813,3216.8,3216.7,0.002]
[1768857081294,4.54303813,3216.8,3216.4,0.0028016]
[1768857081512,4.99742214,3216.8,3216.4,0.0028016]
[1768857088408,0.000802,3217.0,3216.5,0.97666607]
[1768857088583,0.513,3216.9,3216.5,0.97666607]
[1768857090963,3.62159494,3216.9,3216.5,0.97666607]
[1768857091872,0.513,3216.9,3216.5,0.97666607]
[1768857093310,0.513,3216.9,3216.7,0.002]
[1768857095100,3.62158629,3216.9,3216.7,0.002]
[1768857095304,4.38752916,3216.9,3216.7,0.002]
[1768857095682,3.87452916,3216.9,3216.7,0.002]
[1768857097574,7.91175529,3216.9,3216.7,0.002]
[1768857097803,0.92863984,3216.8,3216.4,0.0028016]
[1768857099609,4.03738613,3216.8,3216.4,0.0028016]
[1768857100909,0.92863984,3216.8,3216.4,0.97946767]
[1768857101608,3.10868659,3216.8,3216.4,0.97946767]
[1768857101782,4.81345011,3216.9,3216.4,0.97946767]
[1768857104415,7.92207826,3216.9,3216.4,0.97946767]
[1768857104714,0.84358803,3216.8,3216.7,0.002]
[1768857104916,0.84358803,3216.8,3216.4,0.97946767]
[1768857106214,4.04750724,3216.9,3216.4,0.97946767]
[1768857107925,0.93887909,3216.8,3216.2,0.002]
[1768857108140,0.93968069,3216.8,3216.2,0.002]
[1768857108493,0.93887909,3216.6,3216.2,0.002]
[1768857108726,1.65452221,3216.5,3216.2,0.002]
[1768857112708,4.76358089,3216.5,3216.2,0.002]
[1768857118062,0.9822446,3216.4,3216.2,0.002]
[1768857120028,4.09131442,3216.4,3216.2,0.002]
[1768857121282,3.10906982,3216.4,3216.2,0.002]
[1768857121584,3.10900888,3216.5,3216.2,0.002]
[1768857121802,0.0008016,3216.8,3216.2,0.97136448]
[1768857121803,3.10955176,3216.8,3216.2,0.97136448]
[1768857121987,0.513,3216.7,3216.2,0.97136448]
[1768857122281,0.0008016,3216.8,3216.2,0.97136448]
[1768857122670,3.10948797,3216.8,3216.2,0.97136448]
[1768857122845,0.000802,3217.0,3216.4,0.96936448]
[1768857123054,0.00080552,3217.3,3216.7,0.96936448]
[1768857123878,0.00080552,3217.3,3216.8,0.96936448]
[1768857125606,0.00080552,3217.3,3216.9,0.96936448]
[1768857126503,0.001,3217.5,3217.1,0.96936448]
[1768857126665,0.00080528,3217.6,3217.1,0.96936448]
[1768857127003,0.9822446,3217.5,3216.9,0.0008056]
[1768857127810,0.9822446,3217.4,3216.9,0.0008056]
[1768857127975,0.001,3217.0,3216.9,0.97017008]
[1768857129824,0.001,3217.0,3216.9,1.37806455]
[1768857130006,4.0909991,3217.6,3217.0,0.96936448]
[1768857130315,0.9822446,3217.5,3217.0,0.96936448]
[1768857132329,4.09024798,3217.5,3217.0,0.96936448]
[1768857133939,4.60324798,3217.5,3217.0,0.96936448]
[1768857135760,1.4952446,3217.5,3217.0,0.96936448]
[1768857137960,0.513,3217.5,3217.0,0.96936448]
[1768857139663,0.513,3217.5,3217.2,0.002]
[1768857141180,0.513,3217.5,3214.7,0.002]
[1768857141181,0.002,3217.2,3214.7,0.002]
[1768857141359,0.66103888,3215.4,3214.7,0.002]
[1768857141535,0.66103888,3215.2,3214.7,0.96936448]
[1768857141733,0.0008016,3216.4,3214.7,0.96936448]
[1768857141930,0.66103888,3215.6,3214.7,0.96936448]
[1768857142137,1.86209133,3215.5,3214.7,0.96936448]
[1768857143153,0.66103888,3215.4,3214.7,0.96936448]
[1768857144146,3.11012969,3215.3,3214.7,0.96936448]
[1768857144346,3.77107887,3215.4,3214.7,0.96936448]
[1768857144759,0.66103888,3215.4,3214.7,0.96936448]
[1768857144959,4.26831827,3215.4,3214.7,0.96936448]
[1768857145362,7.3783928,3215.4,3214.7,0.96936448]
[1768857147784,0.66103888,3215.3,3214.4,0.95091977]
[1768857148493,6.22045284,3215.2,3214.4,0.95091977]
[1768857148696,0.66103888,3215.1,3214.4,0.95091977]
[1768857148885,1.34918805,3215.1,3214.4,0.95091977]
[1768857149494,0.66103888,3214.9,3214.3,0.002]
[1768857150879,0.66103888,3214.8,3214.3,0.002]
[1768857151594,0.66103888,3214.8,3214.7,0.001]
[1768857151798,1.08950321,3214.8,3214.7,0.001]
[1768857151996,0.42846433,3214.8,3214.3,0.002]
[1768857152178,0.66103888,3214.7,3214.3,0.002]
[1768857155001,0.42846433,3214.8,3214.4,0.95091977]
[1768857155201,0.66103888,3215.5,3214.4,0.95091977]
[1768857155377,0.66103888,3215.4,3214.4,0.95091977]
[1768857155584,0.66103888,3215.3,3214.4,0.95091977]
[1768857156991,0.513,3215.2,3214.4,0.95091977]
[1768857157615,0.513,3215.2,3214.6,0.95091977]
[1768857158191,0.94141814,3215.2,3214.6,0.95091977]
[1768857159724,0.94141814,3215.2,3214.6,4.0617152]
[1768857159894,0.94141814,3215.2,3214.6,0.95091977]
[1768857160086,0.513,3215.2,3214.6,0.95091977]
[1768857160505,0.66103888,3215.3,3214.7,0.95091977]
[1768857160818,1.17403888,3215.3,3214.7,0.95091977]
[1768857162010,3.77101968,3215.5,3214.6,0.96803693]
[1768857162216,0.513,3215.4,3214.6,0.96803693]
[1768857162431,0.513,3215.4,3214.3,0.002]
[1768857162595,0.513,3215.4,3213.5,0.96803693]
[1768857162596,0.66103888,3214.3,3213.5,0.96803693]
[1768857162789,0.66103888,3214.2,3213.5,0.96803693]
[1768857163628,0.66103888,3214.2,3213.6,0.96803693]
[1768857164487,0.66103888,3214.2,3213.8,0.002]
[1768857166119,0.42851417,3214.2,3213.8,0.002]
[1768857166320,0.66103888,3214.1,3213.8,0.002]
[1768857166516,0.66103888,3214.1,3213.5,0.002]
[1768857166517,0.66103888,3214.0,3213.5,0.002]
[1768857167021,0.66103888,3214.0,3213.2,0.96803693]
[1768857167212,0.66103888,3213.8,3213.2,0.96803693]
[1768857167522,0.66103888,3213.7,3213.2,0.96803693]
[1768857168381,0.66103888,3213.6,3213.2,0.96803693]
[1768857169721,5.80287689,3213.3,3212.2,0.00280328]
[1768857169918,5.80287689,3213.3,3211.9,0.00080272]
[1768857169919,0.00080272,3212.3,3211.9,0.74668423]
[1768857170821,0.00080328,3212.6,3212.1,0.96803693]
[1768857172793,0.513,3212.8,3212.2,0.96884029]
[1768857174236,0.88239158,3213.0,3212.2,0.96884029]